{"text_format":"2","workbook":"xlsx","n_sheets":5,"sheets":["1. Datos entrada - Motores","1. Datos entrada Caracteristica","2. MAE Evaluación general","3. MAE Sustitución motor","4. MAE VSD"],"not_rendered":{"charts":0,"images":1,"macros":0,"external_links":0,"defined_names":2,"comments":0,"pivot_tables":0},"unopened":[],"bounds":{"document_bytes":16777216,"sheet_cells":100000,"run_cost":"one","rows_first":2000,"rows_last":500,"rows_between":2000,"halvings":0,"cell_chars":16384,"cell_head_chars":4096},"cells_cut":0,"cells_raw":0,"read":"whole","date_system":"1900"}

{"sheet":"1. Datos entrada - Motores","index":0,"n_rows":160,"n_cols":7,"rows_kept":160,"cut":false,"hidden":false,"merged":[[78,0,79,0],[24,0,24,1],[41,2,41,6],[32,0,33,0],[34,0,35,0],[30,0,31,0],[36,0,37,0],[38,0,39,0],[52,0,53,1],[52,2,52,6],[54,0,54,1],[70,0,71,0],[72,0,73,0],[74,0,75,0],[76,0,77,0],[66,0,67,0],[68,0,69,0],[58,0,58,1],[59,0,59,1],[60,0,60,1],[61,0,61,1],[62,0,62,1],[65,0,65,1],[63,0,63,1],[64,0,64,1],[55,0,55,1],[56,0,56,1],[57,0,57,1],[19,0,19,1],[20,0,20,1],[21,0,21,1],[12,2,12,6],[12,0,13,1],[14,0,14,1],[15,0,15,1],[16,0,16,1],[92,0,93,1],[81,2,81,6],[80,2,80,6],[83,2,83,6],[0,2,0,6],[1,2,1,6],[3,2,3,6],[40,2,40,6],[43,2,43,6],[22,0,22,1],[23,0,23,1],[25,0,25,1],[26,0,27,0],[28,0,29,0],[17,0,17,1],[18,0,18,1],[100,0,100,1],[101,0,101,1],[94,0,94,1],[95,0,95,1],[96,0,96,1],[92,2,92,6],[104,0,104,1],[105,0,105,1],[118,0,119,0],[120,2,120,6],[110,0,111,0],[112,0,113,0],[114,0,115,0],[116,0,117,0],[102,0,102,1],[103,0,103,1],[106,0,107,0],[108,0,109,0],[97,0,97,1],[98,0,98,1],[99,0,99,1],[121,2,121,6],[123,2,123,6],[132,0,133,1],[132,2,132,6],[134,0,134,1],[135,0,135,1],[136,0,136,1],[137,0,137,1],[138,0,138,1],[139,0,139,1],[140,0,140,1],[141,0,141,1],[142,0,142,1],[143,0,143,1],[144,0,144,1],[152,0,153,0],[154,0,155,0],[156,0,157,0],[158,0,159,0],[145,0,145,1],[146,0,147,0],[148,0,149,0],[150,0,151,0]]}
[]
[null,null,"FORMATO DE RECOPILACIÓN DE DATOS"]
[]
[null,null,"SISTEMAS ELECTROMOTRICES"]
[]
["Razón social"]
["Fecha del taller de Eficiencia Energética"]
[]
["I. Datos de motores"]
[]
[null,null,"Completar las tablas siguientes con los datos de cada uno de los motores"]
[]
[null,null,"Motor"]
[null,null,1,2,3,4,5]
["Nombre, área, Zona o Máquina"]
["Marca"]
["Modelo"]
["Serie"]
["Tipo de servicio"]
["Armazon"]
["Frecuencia (Hz)"]
["Número de fases"]
["Factor de servicio"]
["Letra de diseño"]
["Tipo de arrancador"]
["Clase de aislamiento"]
["Potencia (HP / kW)","Nominal"]
[null,"Calculada"]
["Voltaje (Volts)","Nominal"]
[null,"Medido"]
["Corriente (Amps)","Nominal"]
[null,"Medido"]
["Factor de potencia (%)","Nominal"]
[null,"Calculado"]
["Eficiencia (%)","Nominal"]
[null,"Calculado"]
["Temperatura de trabajo","Nominal"]
[null,"Medida"]
["Revoluciones por minuto (R.P.M)","Nominal"]
[null,"Medidas"]
[]
[null,null,"FORMATO DE RECOPILACIÓN DE DATOS"]
[]
[null,null,"SISTEMAS ELECTROMOTRICES"]
[]
["Razón social"]
["Fecha del taller de Eficiencia Energética"]
[]
["I. Datos de motores"]
[]
[null,null,"Completar las tablas siguientes con los datos de cada uno de los motores"]
[]
[null,null,"Motor"]
[null,null,6,7,8,9,10]
["Nombre, área, Zona o Máquina"]
["Marca"]
["Modelo"]
["Serie"]
["Tipo de servicio"]
["Armazon"]
["Frecuencia (Hz)"]
["Número de fases"]
["Factor de servicio"]
["Letra de diseño"]
["Tipo de arrancador"]
["Clase de aislamiento"]
["Potencia (HP / kW)","Nominal"]
[null,"Calculada"]
["Voltaje (Volts)","Nominal"]
[null,"Medido"]
["Corriente (Amps)","Nominal"]
[null,"Medido"]
["Factor de potencia (%)","Nominal"]
[null,"Calculado"]
["Eficiencia (%)","Nominal"]
[null,"Calculado"]
["Temperatura de trabajo","Nominal"]
[null,"Medida"]
["Revoluciones por minuto (R.P.M)","Nominal"]
[null,"Medidas"]
[]
[null,null,"FORMATO DE RECOPILACIÓN DE DATOS"]
[]
[null,null,"SISTEMAS ELECTROMOTRICES"]
[]
["Razón social"]
["Fecha del taller de Eficiencia Energética"]
[]
["I. Datos de motores"]
[]
[null,null,"Completar las tablas siguientes con los datos de cada uno de los motores"]
[]
[null,null,"Motor"]
[null,null,11,12,13,14,15]
["Nombre, área, Zona o Máquina"]
["Marca"]
["Modelo"]
["Serie"]
["Tipo de servicio"]
["Armazon"]
["Frecuencia (Hz)"]
["Número de fases"]
["Factor de servicio"]
["Letra de diseño"]
["Tipo de arrancador"]
["Clase de aislamiento"]
["Potencia (HP / kW)","Nominal"]
[null,"Calculada"]
["Voltaje (Volts)","Nominal"]
[null,"Medido"]
["Corriente (Amps)","Nominal"]
[null,"Medido"]
["Factor de potencia (%)","Nominal"]
[null,"Calculado"]
["Eficiencia (%)","Nominal"]
[null,"Calculado"]
["Temperatura de trabajo","Nominal"]
[null,"Medida"]
["Revoluciones por minuto (R.P.M)","Nominal"]
[null,"Medidas"]
[]
[null,null,"FORMATO DE RECOPILACIÓN DE DATOS"]
[]
[null,null,"SISTEMAS ELECTROMOTRICES"]
[]
["Razón social"]
["Fecha del taller de Eficiencia Energética"]
[]
["I. Datos de motores"]
[]
[null,null,"Completar las tablas siguientes con los datos de cada uno de los motores"]
[]
[null,null,"Motor"]
[null,null,16,17,18,19,20]
["Nombre, área, Zona o Máquina"]
["Marca"]
["Modelo"]
["Serie"]
["Tipo de servicio"]
["Armazon"]
["Frecuencia (Hz)"]
["Número de fases"]
["Factor de servicio"]
["Letra de diseño"]
["Tipo de arrancador"]
["Clase de aislamiento"]
["Potencia (HP / kW)","Nominal"]
[null,"Calculada"]
["Voltaje (Volts)","Nominal"]
[null,"Medido"]
["Corriente (Amps)","Nominal"]
[null,"Medido"]
["Factor de potencia (%)","Nominal"]
[null,"Calculado"]
["Eficiencia (%)","Nominal"]
[null,"Calculado"]
["Temperatura de trabajo","Nominal"]
[null,"Medida"]
["Revoluciones por minuto (R.P.M)","Nominal"]
[null,"Medidas"]

{"sheet":"1. Datos entrada Caracteristica","index":1,"n_rows":57,"n_cols":10,"rows_kept":57,"cut":false,"hidden":false,"merged":[[0,1,0,9],[1,1,1,9],[3,1,3,9],[5,4,5,8],[6,4,6,8]]}
[]
[null,"FORMATO DE RECOPILACIÓN DE DATOS"]
[]
[null,"SISTEMAS ELECTROMOTRICES"]
[]
["Razón social"]
["Fecha del taller de Eficiencia Energética"]
[]
[]
["I. Características de los motores"]
[]
[null,"Completar las tablas siguientes con los datos de cada motor"]
[]
["Motor","El equipo se encuentra limpio (SI/NO)","Tiene algun recubrimiento de pintura (SI/NO)","Tipo de acoplamiento","Se tiene alineado (SI/NO)","Cuenta con base (SI/NO)","La base tiene antivibratorios (SI/NO)","Es de alta eficiencia (SI/NO)","Cuenta con variador de velocidad (SI/NO)","Frecuencia del mantenimieto"]
[1]
[2]
[3]
[4]
[5]
[6]
[7]
[8]
[9]
[10]
[11]
[12]
[13]
[14]
[15]
[16]
[17]
[18]
[19]
[20]
[]
[]
["Motor","Horas de operación / año (hrs)","Ha sido rebobinado (SI/NO)","Cuantas veces se rebobinó?","Antigüedad (años)"]
[1]
[2]
[3]
[4]
[5]
[6]
[7]
[8]
[9]
[10]
[11]
[12]
[13]
[14]
[15]
[16]
[17]
[18]
[19]
[20]

{"sheet":"2. MAE Evaluación general","index":2,"n_rows":170,"n_cols":6,"rows_kept":170,"cut":false,"hidden":false,"merged":[[3,0,3,5],[53,0,53,5],[80,0,80,5],[1,0,1,5],[27,0,27,5],[168,0,168,1],[134,0,134,5],[161,0,161,5],[136,3,136,4],[137,3,156,4]]}
[]
["Medida de Ahorro de Energía:\nEVALUACIÓN GENERAL"]
[]
["1/ Mantenimiento preventivo adecuado"]
[]
["Motor","Limpieza","Alineación","Bases","Limitar vibraciones","Frecuencia"]
[1,{"$f":"IF('1. Datos entrada Caracteristica'!B15=\"\",\"\",IF('1. Datos entrada Caracteristica'!B15=\"si\",IF('1. Datos entrada Caracteristica'!C15=\"si\",\"Recomendar realizar limpieza\",\"Recomendar realizar limpieza\"),IF('1. Datos entrada Caracteristica'!B15=\"si\",\"Recomendar realizar limpieza\",Equipo limpio)))","v":""},{"$f":"IF('1. Datos entrada Caracteristica'!E15=\"\",\"\",IF('1. Datos entrada Caracteristica'!E15=\"si\",\"ok, alineado\",\"Recomendar alinear el motor\"))","v":""},{"$f":"IF('1. Datos entrada Caracteristica'!F15=\"\",\"\",IF('1. Datos entrada Caracteristica'!F15=\"si\",\"OK\",\"Recomendar instalar bases\"))","v":""},{"$f":"IF('1. Datos entrada Caracteristica'!G15=\"\",\"\",IF('1. Datos entrada Caracteristica'!F15=\"si\",\"OK\",\"Recomendar instalar bases antivibratorias\"))","v":""},{"$f":"IF('1. Datos entrada Caracteristica'!J15=\"\",\"Recomendar la implantación de un programa de mantenimiento\",\"Validar que las tareas y frecuencia sean los adecuados de acuerdo a las condiciones de operación\")","v":"Recomendar la implantación de un programa de mantenimiento"}]
[2,{"$f":"IF('1. Datos entrada Caracteristica'!B16=\"\",\"\",IF('1. Datos entrada Caracteristica'!B16=\"si\",IF('1. Datos entrada Caracteristica'!C16=\"si\",\"Recomendar realizar limpieza\",\"Recomendar realizar limpieza\"),IF('1. Datos entrada Caracteristica'!B16=\"si\",\"Recomendar realizar limpieza\",Equipo limpio)))","v":""},{"$f":"IF('1. Datos entrada Caracteristica'!E16=\"\",\"\",IF('1. Datos entrada Caracteristica'!E16=\"si\",\"ok, alineado\",\"Recomendar alinear el motor\"))","v":""},{"$f":"IF('1. Datos entrada Caracteristica'!F16=\"\",\"\",IF('1. Datos entrada Caracteristica'!F16=\"si\",\"OK\",\"Recomendar instalar bases\"))","v":""},{"$f":"IF('1. Datos entrada Caracteristica'!G16=\"\",\"\",IF('1. Datos entrada Caracteristica'!F16=\"si\",\"OK\",\"Recomendar instalar bases antivibratorias\"))","v":""},{"$f":"IF('1. Datos entrada Caracteristica'!J16=\"\",\"Recomendar la implantación de un programa de mantenimiento\",\"Validar que las tareas y frecuencia sean los adecuados de acuerdo a las condiciones de operación\")","v":"Recomendar la implantación de un programa de mantenimiento"}]
[3,{"$f":"IF('1. Datos entrada Caracteristica'!B17=\"\",\"\",IF('1. Datos entrada Caracteristica'!B17=\"si\",IF('1. Datos entrada Caracteristica'!C17=\"si\",\"Recomendar realizar limpieza\",\"Recomendar realizar limpieza\"),IF('1. Datos entrada Caracteristica'!B17=\"si\",\"Recomendar realizar limpieza\",Equipo limpio)))","v":""},{"$f":"IF('1. Datos entrada Caracteristica'!E17=\"\",\"\",IF('1. Datos entrada Caracteristica'!E17=\"si\",\"ok, alineado\",\"Recomendar alinear el motor\"))","v":""},{"$f":"IF('1. Datos entrada Caracteristica'!F17=\"\",\"\",IF('1. Datos entrada Caracteristica'!F17=\"si\",\"OK\",\"Recomendar instalar bases\"))","v":""},{"$f":"IF('1. Datos entrada Caracteristica'!G17=\"\",\"\",IF('1. Datos entrada Caracteristica'!F17=\"si\",\"OK\",\"Recomendar instalar bases antivibratorias\"))","v":""},{"$f":"IF('1. Datos entrada Caracteristica'!J17=\"\",\"Recomendar la implantación de un programa de mantenimiento\",\"Validar que las tareas y frecuencia sean los adecuados de acuerdo a las condiciones de operación\")","v":"Recomendar la implantación de un programa de mantenimiento"}]
[4,{"$f":"IF('1. Datos entrada Caracteristica'!B18=\"\",\"\",IF('1. Datos entrada Caracteristica'!B18=\"si\",IF('1. Datos entrada Caracteristica'!C18=\"si\",\"Recomendar realizar limpieza\",\"Recomendar realizar limpieza\"),IF('1. Datos entrada Caracteristica'!B18=\"si\",\"Recomendar realizar limpieza\",Equipo limpio)))","v":""},{"$f":"IF('1. Datos entrada Caracteristica'!E18=\"\",\"\",IF('1. Datos entrada Caracteristica'!E18=\"si\",\"ok, alineado\",\"Recomendar alinear el motor\"))","v":""},{"$f":"IF('1. Datos entrada Caracteristica'!F18=\"\",\"\",IF('1. Datos entrada Caracteristica'!F18=\"si\",\"OK\",\"Recomendar instalar bases\"))","v":""},{"$f":"IF('1. Datos entrada Caracteristica'!G18=\"\",\"\",IF('1. Datos entrada Caracteristica'!F18=\"si\",\"OK\",\"Recomendar instalar bases antivibratorias\"))","v":""},{"$f":"IF('1. Datos entrada Caracteristica'!J18=\"\",\"Recomendar la implantación de un programa de mantenimiento\",\"Validar que las tareas y frecuencia sean los adecuados de acuerdo a las condiciones de operación\")","v":"Recomendar la implantación de un programa de mantenimiento"}]
[5,{"$f":"IF('1. Datos entrada Caracteristica'!B19=\"\",\"\",IF('1. Datos entrada Caracteristica'!B19=\"si\",IF('1. Datos entrada Caracteristica'!C19=\"si\",\"Recomendar realizar limpieza\",\"Recomendar realizar limpieza\"),IF('1. Datos entrada Caracteristica'!B19=\"si\",\"Recomendar realizar limpieza\",Equipo limpio)))","v":""},{"$f":"IF('1. Datos entrada Caracteristica'!E19=\"\",\"\",IF('1. Datos entrada Caracteristica'!E19=\"si\",\"ok, alineado\",\"Recomendar alinear el motor\"))","v":""},{"$f":"IF('1. Datos entrada Caracteristica'!F19=\"\",\"\",IF('1. Datos entrada Caracteristica'!F19=\"si\",\"OK\",\"Recomendar instalar bases\"))","v":""},{"$f":"IF('1. Datos entrada Caracteristica'!G19=\"\",\"\",IF('1. Datos entrada Caracteristica'!F19=\"si\",\"OK\",\"Recomendar instalar bases antivibratorias\"))","v":""},{"$f":"IF('1. Datos entrada Caracteristica'!J19=\"\",\"Recomendar la implantación de un programa de mantenimiento\",\"Validar que las tareas y frecuencia sean los adecuados de acuerdo a las condiciones de operación\")","v":"Recomendar la implantación de un programa de mantenimiento"}]
[6,{"$f":"IF('1. Datos entrada Caracteristica'!B20=\"\",\"\",IF('1. Datos entrada Caracteristica'!B20=\"si\",IF('1. Datos entrada Caracteristica'!C20=\"si\",\"Recomendar realizar limpieza\",\"Recomendar realizar limpieza\"),IF('1. Datos entrada Caracteristica'!B20=\"si\",\"Recomendar realizar limpieza\",Equipo limpio)))","v":""},{"$f":"IF('1. Datos entrada Caracteristica'!E20=\"\",\"\",IF('1. Datos entrada Caracteristica'!E20=\"si\",\"ok, alineado\",\"Recomendar alinear el motor\"))","v":""},{"$f":"IF('1. Datos entrada Caracteristica'!F20=\"\",\"\",IF('1. Datos entrada Caracteristica'!F20=\"si\",\"OK\",\"Recomendar instalar bases\"))","v":""},{"$f":"IF('1. Datos entrada Caracteristica'!G20=\"\",\"\",IF('1. Datos entrada Caracteristica'!F20=\"si\",\"OK\",\"Recomendar instalar bases antivibratorias\"))","v":""},{"$f":"IF('1. Datos entrada Caracteristica'!J20=\"\",\"Recomendar la implantación de un programa de mantenimiento\",\"Validar que las tareas y frecuencia sean los adecuados de acuerdo a las condiciones de operación\")","v":"Recomendar la implantación de un programa de mantenimiento"}]
[7,{"$f":"IF('1. Datos entrada Caracteristica'!B21=\"\",\"\",IF('1. Datos entrada Caracteristica'!B21=\"si\",IF('1. Datos entrada Caracteristica'!C21=\"si\",\"Recomendar realizar limpieza\",\"Recomendar realizar limpieza\"),IF('1. Datos entrada Caracteristica'!B21=\"si\",\"Recomendar realizar limpieza\",Equipo limpio)))","v":""},{"$f":"IF('1. Datos entrada Caracteristica'!E21=\"\",\"\",IF('1. Datos entrada Caracteristica'!E21=\"si\",\"ok, alineado\",\"Recomendar alinear el motor\"))","v":""},{"$f":"IF('1. Datos entrada Caracteristica'!F21=\"\",\"\",IF('1. Datos entrada Caracteristica'!F21=\"si\",\"OK\",\"Recomendar instalar bases\"))","v":""},{"$f":"IF('1. Datos entrada Caracteristica'!G21=\"\",\"\",IF('1. Datos entrada Caracteristica'!F21=\"si\",\"OK\",\"Recomendar instalar bases antivibratorias\"))","v":""},{"$f":"IF('1. Datos entrada Caracteristica'!J21=\"\",\"Recomendar la implantación de un programa de mantenimiento\",\"Validar que las tareas y frecuencia sean los adecuados de acuerdo a las condiciones de operación\")","v":"Recomendar la implantación de un programa de mantenimiento"}]
[8,{"$f":"IF('1. Datos entrada Caracteristica'!B22=\"\",\"\",IF('1. Datos entrada Caracteristica'!B22=\"si\",IF('1. Datos entrada Caracteristica'!C22=\"si\",\"Recomendar realizar limpieza\",\"Recomendar realizar limpieza\"),IF('1. Datos entrada Caracteristica'!B22=\"si\",\"Recomendar realizar limpieza\",Equipo limpio)))","v":""},{"$f":"IF('1. Datos entrada Caracteristica'!E22=\"\",\"\",IF('1. Datos entrada Caracteristica'!E22=\"si\",\"ok, alineado\",\"Recomendar alinear el motor\"))","v":""},{"$f":"IF('1. Datos entrada Caracteristica'!F22=\"\",\"\",IF('1. Datos entrada Caracteristica'!F22=\"si\",\"OK\",\"Recomendar instalar bases\"))","v":""},{"$f":"IF('1. Datos entrada Caracteristica'!G22=\"\",\"\",IF('1. Datos entrada Caracteristica'!F22=\"si\",\"OK\",\"Recomendar instalar bases antivibratorias\"))","v":""},{"$f":"IF('1. Datos entrada Caracteristica'!J22=\"\",\"Recomendar la implantación de un programa de mantenimiento\",\"Validar que las tareas y frecuencia sean los adecuados de acuerdo a las condiciones de operación\")","v":"Recomendar la implantación de un programa de mantenimiento"}]
[9,{"$f":"IF('1. Datos entrada Caracteristica'!B23=\"\",\"\",IF('1. Datos entrada Caracteristica'!B23=\"si\",IF('1. Datos entrada Caracteristica'!C23=\"si\",\"Recomendar realizar limpieza\",\"Recomendar realizar limpieza\"),IF('1. Datos entrada Caracteristica'!B23=\"si\",\"Recomendar realizar limpieza\",Equipo limpio)))","v":""},{"$f":"IF('1. Datos entrada Caracteristica'!E23=\"\",\"\",IF('1. Datos entrada Caracteristica'!E23=\"si\",\"ok, alineado\",\"Recomendar alinear el motor\"))","v":""},{"$f":"IF('1. Datos entrada Caracteristica'!F23=\"\",\"\",IF('1. Datos entrada Caracteristica'!F23=\"si\",\"OK\",\"Recomendar instalar bases\"))","v":""},{"$f":"IF('1. Datos entrada Caracteristica'!G23=\"\",\"\",IF('1. Datos entrada Caracteristica'!F23=\"si\",\"OK\",\"Recomendar instalar bases antivibratorias\"))","v":""},{"$f":"IF('1. Datos entrada Caracteristica'!J23=\"\",\"Recomendar la implantación de un programa de mantenimiento\",\"Validar que las tareas y frecuencia sean los adecuados de acuerdo a las condiciones de operación\")","v":"Recomendar la implantación de un programa de mantenimiento"}]
[10,{"$f":"IF('1. Datos entrada Caracteristica'!B24=\"\",\"\",IF('1. Datos entrada Caracteristica'!B24=\"si\",IF('1. Datos entrada Caracteristica'!C24=\"si\",\"Recomendar realizar limpieza\",\"Recomendar realizar limpieza\"),IF('1. Datos entrada Caracteristica'!B24=\"si\",\"Recomendar realizar limpieza\",Equipo limpio)))","v":""},{"$f":"IF('1. Datos entrada Caracteristica'!E24=\"\",\"\",IF('1. Datos entrada Caracteristica'!E24=\"si\",\"ok, alineado\",\"Recomendar alinear el motor\"))","v":""},{"$f":"IF('1. Datos entrada Caracteristica'!F24=\"\",\"\",IF('1. Datos entrada Caracteristica'!F24=\"si\",\"OK\",\"Recomendar instalar bases\"))","v":""},{"$f":"IF('1. Datos entrada Caracteristica'!G24=\"\",\"\",IF('1. Datos entrada Caracteristica'!F24=\"si\",\"OK\",\"Recomendar instalar bases antivibratorias\"))","v":""},{"$f":"IF('1. Datos entrada Caracteristica'!J24=\"\",\"Recomendar la implantación de un programa de mantenimiento\",\"Validar que las tareas y frecuencia sean los adecuados de acuerdo a las condiciones de operación\")","v":"Recomendar la implantación de un programa de mantenimiento"}]
[11,{"$f":"IF('1. Datos entrada Caracteristica'!B25=\"\",\"\",IF('1. Datos entrada Caracteristica'!B25=\"si\",IF('1. Datos entrada Caracteristica'!C25=\"si\",\"Recomendar realizar limpieza\",\"Recomendar realizar limpieza\"),IF('1. Datos entrada Caracteristica'!B25=\"si\",\"Recomendar realizar limpieza\",Equipo limpio)))","v":""},{"$f":"IF('1. Datos entrada Caracteristica'!E25=\"\",\"\",IF('1. Datos entrada Caracteristica'!E25=\"si\",\"ok, alineado\",\"Recomendar alinear el motor\"))","v":""},{"$f":"IF('1. Datos entrada Caracteristica'!F25=\"\",\"\",IF('1. Datos entrada Caracteristica'!F25=\"si\",\"OK\",\"Recomendar instalar bases\"))","v":""},{"$f":"IF('1. Datos entrada Caracteristica'!G25=\"\",\"\",IF('1. Datos entrada Caracteristica'!F25=\"si\",\"OK\",\"Recomendar instalar bases antivibratorias\"))","v":""},{"$f":"IF('1. Datos entrada Caracteristica'!J25=\"\",\"Recomendar la implantación de un programa de mantenimiento\",\"Validar que las tareas y frecuencia sean los adecuados de acuerdo a las condiciones de operación\")","v":"Recomendar la implantación de un programa de mantenimiento"}]
[12,{"$f":"IF('1. Datos entrada Caracteristica'!B26=\"\",\"\",IF('1. Datos entrada Caracteristica'!B26=\"si\",IF('1. Datos entrada Caracteristica'!C26=\"si\",\"Recomendar realizar limpieza\",\"Recomendar realizar limpieza\"),IF('1. Datos entrada Caracteristica'!B26=\"si\",\"Recomendar realizar limpieza\",Equipo limpio)))","v":""},{"$f":"IF('1. Datos entrada Caracteristica'!E26=\"\",\"\",IF('1. Datos entrada Caracteristica'!E26=\"si\",\"ok, alineado\",\"Recomendar alinear el motor\"))","v":""},{"$f":"IF('1. Datos entrada Caracteristica'!F26=\"\",\"\",IF('1. Datos entrada Caracteristica'!F26=\"si\",\"OK\",\"Recomendar instalar bases\"))","v":""},{"$f":"IF('1. Datos entrada Caracteristica'!G26=\"\",\"\",IF('1. Datos entrada Caracteristica'!F26=\"si\",\"OK\",\"Recomendar instalar bases antivibratorias\"))","v":""},{"$f":"IF('1. Datos entrada Caracteristica'!J26=\"\",\"Recomendar la implantación de un programa de mantenimiento\",\"Validar que las tareas y frecuencia sean los adecuados de acuerdo a las condiciones de operación\")","v":"Recomendar la implantación de un programa de mantenimiento"}]
[13,{"$f":"IF('1. Datos entrada Caracteristica'!B27=\"\",\"\",IF('1. Datos entrada Caracteristica'!B27=\"si\",IF('1. Datos entrada Caracteristica'!C27=\"si\",\"Recomendar realizar limpieza\",\"Recomendar realizar limpieza\"),IF('1. Datos entrada Caracteristica'!B27=\"si\",\"Recomendar realizar limpieza\",Equipo limpio)))","v":""},{"$f":"IF('1. Datos entrada Caracteristica'!E27=\"\",\"\",IF('1. Datos entrada Caracteristica'!E27=\"si\",\"ok, alineado\",\"Recomendar alinear el motor\"))","v":""},{"$f":"IF('1. Datos entrada Caracteristica'!F27=\"\",\"\",IF('1. Datos entrada Caracteristica'!F27=\"si\",\"OK\",\"Recomendar instalar bases\"))","v":""},{"$f":"IF('1. Datos entrada Caracteristica'!G27=\"\",\"\",IF('1. Datos entrada Caracteristica'!F27=\"si\",\"OK\",\"Recomendar instalar bases antivibratorias\"))","v":""},{"$f":"IF('1. Datos entrada Caracteristica'!J27=\"\",\"Recomendar la implantación de un programa de mantenimiento\",\"Validar que las tareas y frecuencia sean los adecuados de acuerdo a las condiciones de operación\")","v":"Recomendar la implantación de un programa de mantenimiento"}]
[14,{"$f":"IF('1. Datos entrada Caracteristica'!B28=\"\",\"\",IF('1. Datos entrada Caracteristica'!B28=\"si\",IF('1. Datos entrada Caracteristica'!C28=\"si\",\"Recomendar realizar limpieza\",\"Recomendar realizar limpieza\"),IF('1. Datos entrada Caracteristica'!B28=\"si\",\"Recomendar realizar limpieza\",Equipo limpio)))","v":""},{"$f":"IF('1. Datos entrada Caracteristica'!E28=\"\",\"\",IF('1. Datos entrada Caracteristica'!E28=\"si\",\"ok, alineado\",\"Recomendar alinear el motor\"))","v":""},{"$f":"IF('1. Datos entrada Caracteristica'!F28=\"\",\"\",IF('1. Datos entrada Caracteristica'!F28=\"si\",\"OK\",\"Recomendar instalar bases\"))","v":""},{"$f":"IF('1. Datos entrada Caracteristica'!G28=\"\",\"\",IF('1. Datos entrada Caracteristica'!F28=\"si\",\"OK\",\"Recomendar instalar bases antivibratorias\"))","v":""},{"$f":"IF('1. Datos entrada Caracteristica'!J28=\"\",\"Recomendar la implantación de un programa de mantenimiento\",\"Validar que las tareas y frecuencia sean los adecuados de acuerdo a las condiciones de operación\")","v":"Recomendar la implantación de un programa de mantenimiento"}]
[15,{"$f":"IF('1. Datos entrada Caracteristica'!B29=\"\",\"\",IF('1. Datos entrada Caracteristica'!B29=\"si\",IF('1. Datos entrada Caracteristica'!C29=\"si\",\"Recomendar realizar limpieza\",\"Recomendar realizar limpieza\"),IF('1. Datos entrada Caracteristica'!B29=\"si\",\"Recomendar realizar limpieza\",Equipo limpio)))","v":""},{"$f":"IF('1. Datos entrada Caracteristica'!E29=\"\",\"\",IF('1. Datos entrada Caracteristica'!E29=\"si\",\"ok, alineado\",\"Recomendar alinear el motor\"))","v":""},{"$f":"IF('1. Datos entrada Caracteristica'!F29=\"\",\"\",IF('1. Datos entrada Caracteristica'!F29=\"si\",\"OK\",\"Recomendar instalar bases\"))","v":""},{"$f":"IF('1. Datos entrada Caracteristica'!G29=\"\",\"\",IF('1. Datos entrada Caracteristica'!F29=\"si\",\"OK\",\"Recomendar instalar bases antivibratorias\"))","v":""},{"$f":"IF('1. Datos entrada Caracteristica'!J29=\"\",\"Recomendar la implantación de un programa de mantenimiento\",\"Validar que las tareas y frecuencia sean los adecuados de acuerdo a las condiciones de operación\")","v":"Recomendar la implantación de un programa de mantenimiento"}]
[16,{"$f":"IF('1. Datos entrada Caracteristica'!B30=\"\",\"\",IF('1. Datos entrada Caracteristica'!B30=\"si\",IF('1. Datos entrada Caracteristica'!C30=\"si\",\"Recomendar realizar limpieza\",\"Recomendar realizar limpieza\"),IF('1. Datos entrada Caracteristica'!B30=\"si\",\"Recomendar realizar limpieza\",Equipo limpio)))","v":""},{"$f":"IF('1. Datos entrada Caracteristica'!E30=\"\",\"\",IF('1. Datos entrada Caracteristica'!E30=\"si\",\"ok, alineado\",\"Recomendar alinear el motor\"))","v":""},{"$f":"IF('1. Datos entrada Caracteristica'!F30=\"\",\"\",IF('1. Datos entrada Caracteristica'!F30=\"si\",\"OK\",\"Recomendar instalar bases\"))","v":""},{"$f":"IF('1. Datos entrada Caracteristica'!G30=\"\",\"\",IF('1. Datos entrada Caracteristica'!F30=\"si\",\"OK\",\"Recomendar instalar bases antivibratorias\"))","v":""},{"$f":"IF('1. Datos entrada Caracteristica'!J30=\"\",\"Recomendar la implantación de un programa de mantenimiento\",\"Validar que las tareas y frecuencia sean los adecuados de acuerdo a las condiciones de operación\")","v":"Recomendar la implantación de un programa de mantenimiento"}]
[17,{"$f":"IF('1. Datos entrada Caracteristica'!B31=\"\",\"\",IF('1. Datos entrada Caracteristica'!B31=\"si\",IF('1. Datos entrada Caracteristica'!C31=\"si\",\"Recomendar realizar limpieza\",\"Recomendar realizar limpieza\"),IF('1. Datos entrada Caracteristica'!B31=\"si\",\"Recomendar realizar limpieza\",Equipo limpio)))","v":""},{"$f":"IF('1. Datos entrada Caracteristica'!E31=\"\",\"\",IF('1. Datos entrada Caracteristica'!E31=\"si\",\"ok, alineado\",\"Recomendar alinear el motor\"))","v":""},{"$f":"IF('1. Datos entrada Caracteristica'!F31=\"\",\"\",IF('1. Datos entrada Caracteristica'!F31=\"si\",\"OK\",\"Recomendar instalar bases\"))","v":""},{"$f":"IF('1. Datos entrada Caracteristica'!G31=\"\",\"\",IF('1. Datos entrada Caracteristica'!F31=\"si\",\"OK\",\"Recomendar instalar bases antivibratorias\"))","v":""},{"$f":"IF('1. Datos entrada Caracteristica'!J31=\"\",\"Recomendar la implantación de un programa de mantenimiento\",\"Validar que las tareas y frecuencia sean los adecuados de acuerdo a las condiciones de operación\")","v":"Recomendar la implantación de un programa de mantenimiento"}]
[18,{"$f":"IF('1. Datos entrada Caracteristica'!B32=\"\",\"\",IF('1. Datos entrada Caracteristica'!B32=\"si\",IF('1. Datos entrada Caracteristica'!C32=\"si\",\"Recomendar realizar limpieza\",\"Recomendar realizar limpieza\"),IF('1. Datos entrada Caracteristica'!B32=\"si\",\"Recomendar realizar limpieza\",Equipo limpio)))","v":""},{"$f":"IF('1. Datos entrada Caracteristica'!E32=\"\",\"\",IF('1. Datos entrada Caracteristica'!E32=\"si\",\"ok, alineado\",\"Recomendar alinear el motor\"))","v":""},{"$f":"IF('1. Datos entrada Caracteristica'!F32=\"\",\"\",IF('1. Datos entrada Caracteristica'!F32=\"si\",\"OK\",\"Recomendar instalar bases\"))","v":""},{"$f":"IF('1. Datos entrada Caracteristica'!G32=\"\",\"\",IF('1. Datos entrada Caracteristica'!F32=\"si\",\"OK\",\"Recomendar instalar bases antivibratorias\"))","v":""},{"$f":"IF('1. Datos entrada Caracteristica'!J32=\"\",\"Recomendar la implantación de un programa de mantenimiento\",\"Validar que las tareas y frecuencia sean los adecuados de acuerdo a las condiciones de operación\")","v":"Recomendar la implantación de un programa de mantenimiento"}]
[19,{"$f":"IF('1. Datos entrada Caracteristica'!B33=\"\",\"\",IF('1. Datos entrada Caracteristica'!B33=\"si\",IF('1. Datos entrada Caracteristica'!C33=\"si\",\"Recomendar realizar limpieza\",\"Recomendar realizar limpieza\"),IF('1. Datos entrada Caracteristica'!B33=\"si\",\"Recomendar realizar limpieza\",Equipo limpio)))","v":""},{"$f":"IF('1. Datos entrada Caracteristica'!E33=\"\",\"\",IF('1. Datos entrada Caracteristica'!E33=\"si\",\"ok, alineado\",\"Recomendar alinear el motor\"))","v":""},{"$f":"IF('1. Datos entrada Caracteristica'!F33=\"\",\"\",IF('1. Datos entrada Caracteristica'!F33=\"si\",\"OK\",\"Recomendar instalar bases\"))","v":""},{"$f":"IF('1. Datos entrada Caracteristica'!G33=\"\",\"\",IF('1. Datos entrada Caracteristica'!F33=\"si\",\"OK\",\"Recomendar instalar bases antivibratorias\"))","v":""},{"$f":"IF('1. Datos entrada Caracteristica'!J33=\"\",\"Recomendar la implantación de un programa de mantenimiento\",\"Validar que las tareas y frecuencia sean los adecuados de acuerdo a las condiciones de operación\")","v":"Recomendar la implantación de un programa de mantenimiento"}]
[20,{"$f":"IF('1. Datos entrada Caracteristica'!B34=\"\",\"\",IF('1. Datos entrada Caracteristica'!B34=\"si\",IF('1. Datos entrada Caracteristica'!C34=\"si\",\"Recomendar realizar limpieza\",\"Recomendar realizar limpieza\"),IF('1. Datos entrada Caracteristica'!B34=\"si\",\"Recomendar realizar limpieza\",Equipo limpio)))","v":""},{"$f":"IF('1. Datos entrada Caracteristica'!E34=\"\",\"\",IF('1. Datos entrada Caracteristica'!E34=\"si\",\"ok, alineado\",\"Recomendar alinear el motor\"))","v":""},{"$f":"IF('1. Datos entrada Caracteristica'!F34=\"\",\"\",IF('1. Datos entrada Caracteristica'!F34=\"si\",\"OK\",\"Recomendar instalar bases\"))","v":""},{"$f":"IF('1. Datos entrada Caracteristica'!G34=\"\",\"\",IF('1. Datos entrada Caracteristica'!F34=\"si\",\"OK\",\"Recomendar instalar bases antivibratorias\"))","v":""},{"$f":"IF('1. Datos entrada Caracteristica'!J34=\"\",\"Recomendar la implantación de un programa de mantenimiento\",\"Validar que las tareas y frecuencia sean los adecuados de acuerdo a las condiciones de operación\")","v":"Recomendar la implantación de un programa de mantenimiento"}]
[]
["2/ Pérdida de eficiencia"]
[]
[null,null,null,0.02]
["Motor","Motor rebobinado?","Cantidad de veces","Eficiencia estimada","Pérdida de eficiencia"]
[1,{"$f":"IF('1. Datos entrada Caracteristica'!C38=\"\",\"\",'1. Datos entrada Caracteristica'!C38)","v":""},{"$f":"'1. Datos entrada Caracteristica'!D38","v":0},{"$f":"'1. Datos entrada - Motores'!C35*((1-'2. MAE Evaluación general'!$D$30)^'2. MAE Evaluación general'!C32)","v":0},{"$f":"'1. Datos entrada - Motores'!C35-D32","v":0}]
[2,{"$f":"IF('1. Datos entrada Caracteristica'!C39=\"\",\"\",'1. Datos entrada Caracteristica'!C39)","v":""},{"$f":"'1. Datos entrada Caracteristica'!D39","v":0},{"$f":"'1. Datos entrada - Motores'!D35*((1-'2. MAE Evaluación general'!$D$30)^'2. MAE Evaluación general'!C33)","v":0},{"$f":"'1. Datos entrada - Motores'!D35-D33","v":0}]
[3,{"$f":"IF('1. Datos entrada Caracteristica'!C40=\"\",\"\",'1. Datos entrada Caracteristica'!C40)","v":""},{"$f":"'1. Datos entrada Caracteristica'!D40","v":0},{"$f":"'1. Datos entrada - Motores'!E35*((1-'2. MAE Evaluación general'!$D$30)^'2. MAE Evaluación general'!C34)","v":0},{"$f":"'1. Datos entrada - Motores'!E35-D34","v":0}]
[4,{"$f":"IF('1. Datos entrada Caracteristica'!C41=\"\",\"\",'1. Datos entrada Caracteristica'!C41)","v":""},{"$f":"'1. Datos entrada Caracteristica'!D41","v":0},{"$f":"'1. Datos entrada - Motores'!F35*((1-'2. MAE Evaluación general'!$D$30)^'2. MAE Evaluación general'!C35)","v":0},{"$f":"'1. Datos entrada - Motores'!F35-D35","v":0}]
[5,{"$f":"IF('1. Datos entrada Caracteristica'!C42=\"\",\"\",'1. Datos entrada Caracteristica'!C42)","v":""},{"$f":"'1. Datos entrada Caracteristica'!D42","v":0},{"$f":"'1. Datos entrada - Motores'!G35*((1-'2. MAE Evaluación general'!$D$30)^'2. MAE Evaluación general'!C36)","v":0},{"$f":"'1. Datos entrada - Motores'!G35-D36","v":0}]
[6,{"$f":"IF('1. Datos entrada Caracteristica'!C43=\"\",\"\",'1. Datos entrada Caracteristica'!C43)","v":""},{"$f":"'1. Datos entrada Caracteristica'!D43","v":0},{"$f":"'1. Datos entrada - Motores'!C75*((1-'2. MAE Evaluación general'!$D$30)^'2. MAE Evaluación general'!C37)","v":0},{"$f":"'1. Datos entrada - Motores'!C75-D37","v":0}]
[7,{"$f":"IF('1. Datos entrada Caracteristica'!C44=\"\",\"\",'1. Datos entrada Caracteristica'!C44)","v":""},{"$f":"'1. Datos entrada Caracteristica'!D44","v":0},{"$f":"'1. Datos entrada - Motores'!D75*((1-'2. MAE Evaluación general'!$D$30)^'2. MAE Evaluación general'!C38)","v":0},{"$f":"'1. Datos entrada - Motores'!D75-D38","v":0}]
[8,{"$f":"IF('1. Datos entrada Caracteristica'!C45=\"\",\"\",'1. Datos entrada Caracteristica'!C45)","v":""},{"$f":"'1. Datos entrada Caracteristica'!D45","v":0},{"$f":"'1. Datos entrada - Motores'!E75*((1-'2. MAE Evaluación general'!$D$30)^'2. MAE Evaluación general'!C39)","v":0},{"$f":"'1. Datos entrada - Motores'!E75-D39","v":0}]
[9,{"$f":"IF('1. Datos entrada Caracteristica'!C46=\"\",\"\",'1. Datos entrada Caracteristica'!C46)","v":""},{"$f":"'1. Datos entrada Caracteristica'!D46","v":0},{"$f":"'1. Datos entrada - Motores'!F75*((1-'2. MAE Evaluación general'!$D$30)^'2. MAE Evaluación general'!C40)","v":0},{"$f":"'1. Datos entrada - Motores'!F75-D40","v":0}]
[10,{"$f":"IF('1. Datos entrada Caracteristica'!C47=\"\",\"\",'1. Datos entrada Caracteristica'!C47)","v":""},{"$f":"'1. Datos entrada Caracteristica'!D47","v":0},{"$f":"'1. Datos entrada - Motores'!G75*((1-'2. MAE Evaluación general'!$D$30)^'2. MAE Evaluación general'!C41)","v":0},{"$f":"'1. Datos entrada - Motores'!G75-D41","v":0}]
[11,{"$f":"IF('1. Datos entrada Caracteristica'!C48=\"\",\"\",'1. Datos entrada Caracteristica'!C48)","v":""},{"$f":"'1. Datos entrada Caracteristica'!D48","v":0},{"$f":"'1. Datos entrada - Motores'!C115*((1-'2. MAE Evaluación general'!$D$30)^'2. MAE Evaluación general'!C42)","v":0},{"$f":"'1. Datos entrada - Motores'!C115-D42","v":0}]
[12,{"$f":"IF('1. Datos entrada Caracteristica'!C49=\"\",\"\",'1. Datos entrada Caracteristica'!C49)","v":""},{"$f":"'1. Datos entrada Caracteristica'!D49","v":0},{"$f":"'1. Datos entrada - Motores'!D115*((1-'2. MAE Evaluación general'!$D$30)^'2. MAE Evaluación general'!C43)","v":0},{"$f":"'1. Datos entrada - Motores'!D115-D43","v":0}]
[13,{"$f":"IF('1. Datos entrada Caracteristica'!C50=\"\",\"\",'1. Datos entrada Caracteristica'!C50)","v":""},{"$f":"'1. Datos entrada Caracteristica'!D50","v":0},{"$f":"'1. Datos entrada - Motores'!E115*((1-'2. MAE Evaluación general'!$D$30)^'2. MAE Evaluación general'!C44)","v":0},{"$f":"'1. Datos entrada - Motores'!E115-D44","v":0}]
[14,{"$f":"IF('1. Datos entrada Caracteristica'!C51=\"\",\"\",'1. Datos entrada Caracteristica'!C51)","v":""},{"$f":"'1. Datos entrada Caracteristica'!D51","v":0},{"$f":"'1. Datos entrada - Motores'!F115*((1-'2. MAE Evaluación general'!$D$30)^'2. MAE Evaluación general'!C45)","v":0},{"$f":"'1. Datos entrada - Motores'!F115-D45","v":0}]
[15,{"$f":"IF('1. Datos entrada Caracteristica'!C52=\"\",\"\",'1. Datos entrada Caracteristica'!C52)","v":""},{"$f":"'1. Datos entrada Caracteristica'!D52","v":0},{"$f":"'1. Datos entrada - Motores'!G115*((1-'2. MAE Evaluación general'!$D$30)^'2. MAE Evaluación general'!C46)","v":0},{"$f":"'1. Datos entrada - Motores'!G115-D46","v":0}]
[16,{"$f":"IF('1. Datos entrada Caracteristica'!C53=\"\",\"\",'1. Datos entrada Caracteristica'!C53)","v":""},{"$f":"'1. Datos entrada Caracteristica'!D53","v":0},{"$f":"'1. Datos entrada - Motores'!C155*((1-'2. MAE Evaluación general'!$D$30)^'2. MAE Evaluación general'!C47)","v":0},{"$f":"'1. Datos entrada - Motores'!C155-D47","v":0}]
[17,{"$f":"IF('1. Datos entrada Caracteristica'!C54=\"\",\"\",'1. Datos entrada Caracteristica'!C54)","v":""},{"$f":"'1. Datos entrada Caracteristica'!D54","v":0},{"$f":"'1. Datos entrada - Motores'!D155*((1-'2. MAE Evaluación general'!$D$30)^'2. MAE Evaluación general'!C48)","v":0},{"$f":"'1. Datos entrada - Motores'!D155-D48","v":0}]
[18,{"$f":"IF('1. Datos entrada Caracteristica'!C55=\"\",\"\",'1. Datos entrada Caracteristica'!C55)","v":""},{"$f":"'1. Datos entrada Caracteristica'!D55","v":0},{"$f":"'1. Datos entrada - Motores'!E155*((1-'2. MAE Evaluación general'!$D$30)^'2. MAE Evaluación general'!C49)","v":0},{"$f":"'1. Datos entrada - Motores'!E155-D49","v":0}]
[19,{"$f":"IF('1. Datos entrada Caracteristica'!C56=\"\",\"\",'1. Datos entrada Caracteristica'!C56)","v":""},{"$f":"'1. Datos entrada Caracteristica'!D56","v":0},{"$f":"'1. Datos entrada - Motores'!F155*((1-'2. MAE Evaluación general'!$D$30)^'2. MAE Evaluación general'!C50)","v":0},{"$f":"'1. Datos entrada - Motores'!F155-D50","v":0}]
[20,{"$f":"IF('1. Datos entrada Caracteristica'!C57=\"\",\"\",'1. Datos entrada Caracteristica'!C57)","v":""},{"$f":"'1. Datos entrada Caracteristica'!D57","v":0},{"$f":"'1. Datos entrada - Motores'!G155*((1-'2. MAE Evaluación general'!$D$30)^'2. MAE Evaluación general'!C51)","v":0},{"$f":"'1. Datos entrada - Motores'!G155-D51","v":0}]
[]
[]
["2/ Reducción de carga"]
[]
[null,"Completar las columnas en amarillo."]
[]
["Motor","Uso","Potencia requerida (kW)","Potencia del motor (kW)","Evaluación"]
[1,null,null,null,{"$f":"IF(C59=\"\",\"\",IF('2. MAE Evaluación general'!C59*1.15<'2. MAE Evaluación general'!D59,\"Existe oportunidad para reducir la capacidad del motor\",\"Poca oportunidad\"))","v":""}]
[2,null,null,null,{"$f":"IF(C60=\"\",\"\",IF('2. MAE Evaluación general'!C60*1.15<'2. MAE Evaluación general'!D60,\"Existe oportunidad para reducir la capacidad del motor\",\"Poca oportunidad\"))","v":""}]
[3,null,null,null,{"$f":"IF(C61=\"\",\"\",IF('2. MAE Evaluación general'!C61*1.15<'2. MAE Evaluación general'!D61,\"Existe oportunidad para reducir la capacidad del motor\",\"Poca oportunidad\"))","v":""}]
[4,null,null,null,{"$f":"IF(C62=\"\",\"\",IF('2. MAE Evaluación general'!C62*1.15<'2. MAE Evaluación general'!D62,\"Existe oportunidad para reducir la capacidad del motor\",\"Poca oportunidad\"))","v":""}]
[5,null,null,null,{"$f":"IF(C63=\"\",\"\",IF('2. MAE Evaluación general'!C63*1.15<'2. MAE Evaluación general'!D63,\"Existe oportunidad para reducir la capacidad del motor\",\"Poca oportunidad\"))","v":""}]
[6,null,null,null,{"$f":"IF(C64=\"\",\"\",IF('2. MAE Evaluación general'!C64*1.15<'2. MAE Evaluación general'!D64,\"Existe oportunidad para reducir la capacidad del motor\",\"Poca oportunidad\"))","v":""}]
[7,null,null,null,{"$f":"IF(C65=\"\",\"\",IF('2. MAE Evaluación general'!C65*1.15<'2. MAE Evaluación general'!D65,\"Existe oportunidad para reducir la capacidad del motor\",\"Poca oportunidad\"))","v":""}]
[8,null,null,null,{"$f":"IF(C66=\"\",\"\",IF('2. MAE Evaluación general'!C66*1.15<'2. MAE Evaluación general'!D66,\"Existe oportunidad para reducir la capacidad del motor\",\"Poca oportunidad\"))","v":""}]
[9,null,null,null,{"$f":"IF(C67=\"\",\"\",IF('2. MAE Evaluación general'!C67*1.15<'2. MAE Evaluación general'!D67,\"Existe oportunidad para reducir la capacidad del motor\",\"Poca oportunidad\"))","v":""}]
[10,null,null,null,{"$f":"IF(C68=\"\",\"\",IF('2. MAE Evaluación general'!C68*1.15<'2. MAE Evaluación general'!D68,\"Existe oportunidad para reducir la capacidad del motor\",\"Poca oportunidad\"))","v":""}]
[11,null,null,null,{"$f":"IF(C69=\"\",\"\",IF('2. MAE Evaluación general'!C69*1.15<'2. MAE Evaluación general'!D69,\"Existe oportunidad para reducir la capacidad del motor\",\"Poca oportunidad\"))","v":""}]
[12,null,null,null,{"$f":"IF(C70=\"\",\"\",IF('2. MAE Evaluación general'!C70*1.15<'2. MAE Evaluación general'!D70,\"Existe oportunidad para reducir la capacidad del motor\",\"Poca oportunidad\"))","v":""}]
[13,null,null,null,{"$f":"IF(C71=\"\",\"\",IF('2. MAE Evaluación general'!C71*1.15<'2. MAE Evaluación general'!D71,\"Existe oportunidad para reducir la capacidad del motor\",\"Poca oportunidad\"))","v":""}]
[14,null,null,null,{"$f":"IF(C72=\"\",\"\",IF('2. MAE Evaluación general'!C72*1.15<'2. MAE Evaluación general'!D72,\"Existe oportunidad para reducir la capacidad del motor\",\"Poca oportunidad\"))","v":""}]
[15,null,null,null,{"$f":"IF(C73=\"\",\"\",IF('2. MAE Evaluación general'!C73*1.15<'2. MAE Evaluación general'!D73,\"Existe oportunidad para reducir la capacidad del motor\",\"Poca oportunidad\"))","v":""}]
[16,null,null,null,{"$f":"IF(C74=\"\",\"\",IF('2. MAE Evaluación general'!C74*1.15<'2. MAE Evaluación general'!D74,\"Existe oportunidad para reducir la capacidad del motor\",\"Poca oportunidad\"))","v":""}]
[17,null,null,null,{"$f":"IF(C75=\"\",\"\",IF('2. MAE Evaluación general'!C75*1.15<'2. MAE Evaluación general'!D75,\"Existe oportunidad para reducir la capacidad del motor\",\"Poca oportunidad\"))","v":""}]
[18,null,null,null,{"$f":"IF(C76=\"\",\"\",IF('2. MAE Evaluación general'!C76*1.15<'2. MAE Evaluación general'!D76,\"Existe oportunidad para reducir la capacidad del motor\",\"Poca oportunidad\"))","v":""}]
[19,null,null,null,{"$f":"IF(C77=\"\",\"\",IF('2. MAE Evaluación general'!C77*1.15<'2. MAE Evaluación general'!D77,\"Existe oportunidad para reducir la capacidad del motor\",\"Poca oportunidad\"))","v":""}]
[20,null,null,null,{"$f":"IF(C78=\"\",\"\",IF('2. MAE Evaluación general'!C78*1.15<'2. MAE Evaluación general'!D78,\"Existe oportunidad para reducir la capacidad del motor\",\"Poca oportunidad\"))","v":""}]
[]
[]
["3/ Sustitución de motores"]
[]
[null,"En caso de que si se deba analizar la sustitución, utilice la herramienta de la siguiente pestaña."]
[]
["Motor","Antigüedad (años)","Potencia (HP)","Hrs funcionamiento / año","Evaluar sustitución?"]
[1,{"$f":"'1. Datos entrada Caracteristica'!D38","v":0},{"$f":"'1. Datos entrada - Motores'!C27","v":0},{"$f":"'1. Datos entrada Caracteristica'!B38","v":0},{"$f":"IF(B86>15,\"SI\",IF(AND('2. MAE Evaluación general'!C86>10,'2. MAE Evaluación general'!C86<75,'2. MAE Evaluación general'!D86>2500),\"SI\",IF(AND(C86<10,C86>75,D86>4500),\"SI\",\"NO\")))","v":"NO"}]
[2,{"$f":"'1. Datos entrada Caracteristica'!D39","v":0},{"$f":"'1. Datos entrada - Motores'!D27","v":0},{"$f":"'1. Datos entrada Caracteristica'!B39","v":0},{"$f":"IF(B87>15,\"SI\",IF(AND('2. MAE Evaluación general'!C87>10,'2. MAE Evaluación general'!C87<75,'2. MAE Evaluación general'!D87>2500),\"SI\",IF(AND(C87<10,C87>75,D87>4500),\"SI\",\"NO\")))","v":"NO"}]
[3,{"$f":"'1. Datos entrada Caracteristica'!D40","v":0},{"$f":"'1. Datos entrada - Motores'!E27","v":0},{"$f":"'1. Datos entrada Caracteristica'!B40","v":0},{"$f":"IF(B88>15,\"SI\",IF(AND('2. MAE Evaluación general'!C88>10,'2. MAE Evaluación general'!C88<75,'2. MAE Evaluación general'!D88>2500),\"SI\",IF(AND(C88<10,C88>75,D88>4500),\"SI\",\"NO\")))","v":"NO"}]
[4,{"$f":"'1. Datos entrada Caracteristica'!D41","v":0},{"$f":"'1. Datos entrada - Motores'!F27","v":0},{"$f":"'1. Datos entrada Caracteristica'!B41","v":0},{"$f":"IF(B89>15,\"SI\",IF(AND('2. MAE Evaluación general'!C89>10,'2. MAE Evaluación general'!C89<75,'2. MAE Evaluación general'!D89>2500),\"SI\",IF(AND(C89<10,C89>75,D89>4500),\"SI\",\"NO\")))","v":"NO"}]
[5,{"$f":"'1. Datos entrada Caracteristica'!D42","v":0},{"$f":"'1. Datos entrada - Motores'!G27","v":0},{"$f":"'1. Datos entrada Caracteristica'!B42","v":0},{"$f":"IF(B90>15,\"SI\",IF(AND('2. MAE Evaluación general'!C90>10,'2. MAE Evaluación general'!C90<75,'2. MAE Evaluación general'!D90>2500),\"SI\",IF(AND(C90<10,C90>75,D90>4500),\"SI\",\"NO\")))","v":"NO"}]
[6,{"$f":"'1. Datos entrada Caracteristica'!D43","v":0},{"$f":"'1. Datos entrada - Motores'!C67","v":0},{"$f":"'1. Datos entrada Caracteristica'!B43","v":0},{"$f":"IF(B91>15,\"SI\",IF(AND('2. MAE Evaluación general'!C91>10,'2. MAE Evaluación general'!C91<75,'2. MAE Evaluación general'!D91>2500),\"SI\",IF(AND(C91<10,C91>75,D91>4500),\"SI\",\"NO\")))","v":"NO"}]
[7,{"$f":"'1. Datos entrada Caracteristica'!D44","v":0},{"$f":"'1. Datos entrada - Motores'!D67","v":0},{"$f":"'1. Datos entrada Caracteristica'!B44","v":0},{"$f":"IF(B92>15,\"SI\",IF(AND('2. MAE Evaluación general'!C92>10,'2. MAE Evaluación general'!C92<75,'2. MAE Evaluación general'!D92>2500),\"SI\",IF(AND(C92<10,C92>75,D92>4500),\"SI\",\"NO\")))","v":"NO"}]
[8,{"$f":"'1. Datos entrada Caracteristica'!D45","v":0},{"$f":"'1. Datos entrada - Motores'!E67","v":0},{"$f":"'1. Datos entrada Caracteristica'!B45","v":0},{"$f":"IF(B93>15,\"SI\",IF(AND('2. MAE Evaluación general'!C93>10,'2. MAE Evaluación general'!C93<75,'2. MAE Evaluación general'!D93>2500),\"SI\",IF(AND(C93<10,C93>75,D93>4500),\"SI\",\"NO\")))","v":"NO"}]
[9,{"$f":"'1. Datos entrada Caracteristica'!D46","v":0},{"$f":"'1. Datos entrada - Motores'!F67","v":0},{"$f":"'1. Datos entrada Caracteristica'!B46","v":0},{"$f":"IF(B94>15,\"SI\",IF(AND('2. MAE Evaluación general'!C94>10,'2. MAE Evaluación general'!C94<75,'2. MAE Evaluación general'!D94>2500),\"SI\",IF(AND(C94<10,C94>75,D94>4500),\"SI\",\"NO\")))","v":"NO"}]
[10,{"$f":"'1. Datos entrada Caracteristica'!D47","v":0},{"$f":"'1. Datos entrada - Motores'!G67","v":0},{"$f":"'1. Datos entrada Caracteristica'!B47","v":0},{"$f":"IF(B95>15,\"SI\",IF(AND('2. MAE Evaluación general'!C95>10,'2. MAE Evaluación general'!C95<75,'2. MAE Evaluación general'!D95>2500),\"SI\",IF(AND(C95<10,C95>75,D95>4500),\"SI\",\"NO\")))","v":"NO"}]
[11,{"$f":"'1. Datos entrada Caracteristica'!D48","v":0},{"$f":"'1. Datos entrada - Motores'!C107","v":0},{"$f":"'1. Datos entrada Caracteristica'!B48","v":0},{"$f":"IF(B96>15,\"SI\",IF(AND('2. MAE Evaluación general'!C96>10,'2. MAE Evaluación general'!C96<75,'2. MAE Evaluación general'!D96>2500),\"SI\",IF(AND(C96<10,C96>75,D96>4500),\"SI\",\"NO\")))","v":"NO"}]
[12,{"$f":"'1. Datos entrada Caracteristica'!D49","v":0},{"$f":"'1. Datos entrada - Motores'!D107","v":0},{"$f":"'1. Datos entrada Caracteristica'!B49","v":0},{"$f":"IF(B97>15,\"SI\",IF(AND('2. MAE Evaluación general'!C97>10,'2. MAE Evaluación general'!C97<75,'2. MAE Evaluación general'!D97>2500),\"SI\",IF(AND(C97<10,C97>75,D97>4500),\"SI\",\"NO\")))","v":"NO"}]
[13,{"$f":"'1. Datos entrada Caracteristica'!D50","v":0},{"$f":"'1. Datos entrada - Motores'!E107","v":0},{"$f":"'1. Datos entrada Caracteristica'!B50","v":0},{"$f":"IF(B98>15,\"SI\",IF(AND('2. MAE Evaluación general'!C98>10,'2. MAE Evaluación general'!C98<75,'2. MAE Evaluación general'!D98>2500),\"SI\",IF(AND(C98<10,C98>75,D98>4500),\"SI\",\"NO\")))","v":"NO"}]
[14,{"$f":"'1. Datos entrada Caracteristica'!D51","v":0},{"$f":"'1. Datos entrada - Motores'!F107","v":0},{"$f":"'1. Datos entrada Caracteristica'!B51","v":0},{"$f":"IF(B99>15,\"SI\",IF(AND('2. MAE Evaluación general'!C99>10,'2. MAE Evaluación general'!C99<75,'2. MAE Evaluación general'!D99>2500),\"SI\",IF(AND(C99<10,C99>75,D99>4500),\"SI\",\"NO\")))","v":"NO"}]
[15,{"$f":"'1. Datos entrada Caracteristica'!D52","v":0},{"$f":"'1. Datos entrada - Motores'!G107","v":0},{"$f":"'1. Datos entrada Caracteristica'!B52","v":0},{"$f":"IF(B100>15,\"SI\",IF(AND('2. MAE Evaluación general'!C100>10,'2. MAE Evaluación general'!C100<75,'2. MAE Evaluación general'!D100>2500),\"SI\",IF(AND(C100<10,C100>75,D100>4500),\"SI\",\"NO\")))","v":"NO"}]
[16,{"$f":"'1. Datos entrada Caracteristica'!D53","v":0},{"$f":"'1. Datos entrada - Motores'!C147","v":0},{"$f":"'1. Datos entrada Caracteristica'!B53","v":0},{"$f":"IF(B101>15,\"SI\",IF(AND('2. MAE Evaluación general'!C101>10,'2. MAE Evaluación general'!C101<75,'2. MAE Evaluación general'!D101>2500),\"SI\",IF(AND(C101<10,C101>75,D101>4500),\"SI\",\"NO\")))","v":"NO"}]
[17,{"$f":"'1. Datos entrada Caracteristica'!D54","v":0},{"$f":"'1. Datos entrada - Motores'!D147","v":0},{"$f":"'1. Datos entrada Caracteristica'!B54","v":0},{"$f":"IF(B102>15,\"SI\",IF(AND('2. MAE Evaluación general'!C102>10,'2. MAE Evaluación general'!C102<75,'2. MAE Evaluación general'!D102>2500),\"SI\",IF(AND(C102<10,C102>75,D102>4500),\"SI\",\"NO\")))","v":"NO"}]
[18,{"$f":"'1. Datos entrada Caracteristica'!D55","v":0},{"$f":"'1. Datos entrada - Motores'!E147","v":0},{"$f":"'1. Datos entrada Caracteristica'!B55","v":0},{"$f":"IF(B103>15,\"SI\",IF(AND('2. MAE Evaluación general'!C103>10,'2. MAE Evaluación general'!C103<75,'2. MAE Evaluación general'!D103>2500),\"SI\",IF(AND(C103<10,C103>75,D103>4500),\"SI\",\"NO\")))","v":"NO"}]
[19,{"$f":"'1. Datos entrada Caracteristica'!D56","v":0},{"$f":"'1. Datos entrada - Motores'!F147","v":0},{"$f":"'1. Datos entrada Caracteristica'!B56","v":0},{"$f":"IF(B104>15,\"SI\",IF(AND('2. MAE Evaluación general'!C104>10,'2. MAE Evaluación general'!C104<75,'2. MAE Evaluación general'!D104>2500),\"SI\",IF(AND(C104<10,C104>75,D104>4500),\"SI\",\"NO\")))","v":"NO"}]
[20,{"$f":"'1. Datos entrada Caracteristica'!D57","v":0},{"$f":"'1. Datos entrada - Motores'!G147","v":0},{"$f":"'1. Datos entrada Caracteristica'!B57","v":0},{"$f":"IF(B105>15,\"SI\",IF(AND('2. MAE Evaluación general'!C105>10,'2. MAE Evaluación general'!C105<75,'2. MAE Evaluación general'!D105>2500),\"SI\",IF(AND(C105<10,C105>75,D105>4500),\"SI\",\"NO\")))","v":"NO"}]
[]
[]
["4/ Instalación de un variador de frecuencia"]
[]
[null,"En caso de que si se deba evaluar la instalación de un VSD, utilice la herramienta de la siguiente pestaña."]
[]
["Motor","Uso","Evaluar instalación de VSD?"]
[1,{"$f":"B59","v":0},{"$f":"IF(B113=\"Bombas\",\"SI\",IF(B113=\"Ventiladores\",\"SI\",\"NO\"))","v":"NO"}]
[2,0,{"$f":"IF(B114=\"Bombas\",\"SI\",IF(B114=\"Ventiladores\",\"SI\",\"NO\"))","v":"NO"}]
[3,0,"NO"]
[4,0,"NO"]
[5,0,"NO"]
[6,0,"NO"]
[7,0,"NO"]
[8,0,"NO"]
[9,0,"NO"]
[10,0,"NO"]
[11,0,"NO"]
[12,0,"NO"]
[13,0,"NO"]
[14,0,"NO"]
[15,0,"NO"]
[16,0,"NO"]
[17,0,"NO"]
[18,0,"NO"]
[19,0,"NO"]
[20,0,"NO"]
[]
[]
["4/ Resultados"]
[]
["Motor","Ahorros energéticos por VSD (kWh)","Ahorros energéticos por sustitución por alta eficiencia (kWh)","Comentarios"]
[1,null,null,"OJO: Recordar que si recomienda la sustitución del motor por uno de alta eficiencia y además instala un variador de frecuencia en ese mismo motor, debe:\n\n1/ Analizar la sustitución del motor por una de alta eficiencia\n\n2/ Para el análisis de los ahorros por variador de frecuencia, debe ingresar en la herramienta de cálculo la potencia del motor de alta eficiencia."]
[2]
[3]
[4]
[5]
[6]
[7]
[8]
[9]
[10]
[11]
[12]
[13]
[14]
[15]
[16]
[17]
[18]
[19]
[20]
["TOTAL",{"$f":"SUM(B138:B157)","v":0},{"$f":"SUM(C138:C157)","v":0}]
[]
[]
["Costo promedio del kWh eléctrico",null,null,"$/kWh"]
["(En caso de desconocer el valor, dividir el costo anual de la electricidad (suma del valor de los 12  últimos recibos de CFE) entre el consumo anual total en kWh (indicado en kWh mensuales en el recibo de CFE )"]
[]
["Ahorro de energía eléctrica",null,{"$f":"(B158+C158)","v":0},"kWh/año"]
[]
["Ahorro económico",null,{"$f":"C164*C161","v":0},"$/año"]
[]
["Emisiones anuales de CO2 evitadas:",null,{"$f":"IF(C164=\"\",\"\",C164*C169)","v":0},"kgCO2e/año"]
["Factor de emisión de electricidad considerado",null,0.499,"kgCO2e/kWh"]
["Fuente: http://www.geimexico.org/factor.html "]

{"sheet":"3. MAE Sustitución motor","index":3,"n_rows":49,"n_cols":8,"rows_kept":49,"cut":false,"hidden":false,"merged":[[19,0,19,8],[34,0,34,8],[29,0,29,8],[32,1,32,8],[1,1,1,8],[4,0,4,8]]}
[]
[null,"Medida de Ahorro de Energía:\nSUSTITUCIÓN DE MOTORES"]
[]
[]
["1/ Características generales del motor"]
[]
[null,null,null,"Motor actual",null,null,"Motor de alta eficiencia"]
[]
[null,"Potencia",null,null,"HP",null,null,"HP"]
[]
[null,"Factor de carga",null,null,"%",null,{"$f":"D11","v":0},"%"]
[]
[null,"Eficiencia",null,null,"%",null,null,"%"]
[]
[null,"Tiempo de funcionamiento",null,null,"h/día",null,{"$f":"D15","v":0},{"$f":"E15","v":"h/día"}]
[]
[{"$nulls":4},"días/año",null,{"$f":"D17","v":0},"días/año"]
[]
[]
["2/ Costos de inversión"]
[]
[]
[null,"Precio del motor:",{"$nulls":5},"$"]
[]
[null,"Costo de mano de obra para instalación",{"$nulls":5},"$"]
[]
[null,"Inversión total",{"$nulls":4},{"$f":"G23+G25","v":0},"$"]
[]
[]
["3/ Precio de electricidad"]
[]
[null,"Costo promedio del kWh eléctrico",null,null,"$/kWh"]
[null,"(En caso de desconocer el valor, dividir el costo anual de la electricidad (suma del valor de los 12  últimos recibos de CFE) entre el consumo anual total en kWh (indicado en kWh mensuales en el recibo de CFE )"]
[]
["4/ Resultados"]
[]
[null,"Consumo de energía anual",null,{"$f":"IF(D13=0,0,D9*0.746*D15*D17*100/D13)","v":0},"kWh/año",null,{"$f":"IF(G13=0,0,G9*0.746*G15*G17*100/G13)","v":0},"kWh/año"]
[]
[null,"Ahorro de energía eléctrica",{"$nulls":4},{"$f":"D37-G37","v":0},"kWh/año"]
[]
[null,"Costo de energía eléctrica",null,{"$f":"D37*$D$32","v":0},"$/año",null,{"$f":"G37*D32","v":0},"$/año"]
[]
[null,"Ahorro económico",{"$nulls":4},{"$f":"D41-G41","v":0},"$/año"]
[]
[null,"Tiempo de retorno de inversión",{"$nulls":4},{"$f":"IF(G43=0,\"\",G27/G43)","v":""},"años"]
[]
[null,"Emisiones anuales de CO2 evitadas:",{"$nulls":4},{"$f":"G39*D48","v":0},"kgCO2e/año"]
[null,"Factor de emisión de electricidad considerado",null,0.499,"kgCO2e/kWh"]
[null,"Fuente: http://www.geimexico.org/factor.html "]

{"sheet":"4. MAE VSD","index":4,"n_rows":55,"n_cols":5,"rows_kept":55,"cut":false,"hidden":false,"merged":[[42,0,42,8],[6,1,6,7],[3,1,3,7],[5,1,5,7],[25,0,25,8],[1,1,1,8],[11,0,11,8],[33,0,33,8],[37,0,37,8],[40,1,40,8]]}
[]
[null,"Medida de Ahorro de Energía:\nINSTALACIÓN VARIADOR DE FRECUENCIA"]
[]
[null,"OJO: Esta herramienta de cálculo aplica solamente para motores de corriente alterna síncronos. En motores de corriente alterna asíncronos se produce un desfase entre la velocidad del rotor “real” y “de salida”, el deslizamiento, cuyo valor es de un 5% aproximadamente."]
[]
[null,"kW2 = kW1 x (RPM2 / RPM1 )^3"]
[null,"RPM = 120 x Frecuencia (Hz)/Nº polos."]
[]
[null,"kW representa la potencia del motor"]
[null,"RPM representa las revoluciones por minuto"]
[]
["1/ Características generales del motor"]
[]
[null,"Cantidad de polos",null,4,"seleccionar la opción"]
[]
[null,"Velocidad del rotor",null,null,"RPM"]
[]
[null,"Potencia",null,null,"kW"]
[]
[null,"Factor de carga",null,null,"%"]
[]
[null,"Tiempo de funcionamiento",null,null,"h/día"]
[]
[{"$nulls":4},"días/año"]
[]
["2/ Situación con variador de frecuencia"]
[]
[null,"Frecuencia ",null,null,"Hz"]
[]
[null,"Velocidad del rotor",null,{"$f":"IF(D14=0,\"\",120*D28/D14)","v":0},"RPM"]
[]
[null,"Potencia ",null,{"$f":"IF(D16=0,\"\",D18*(D30/D16)^3)","v":""},"kW"]
[]
["3/ Inversión"]
[]
[null,"Costo de inversión",null,null,"$"]
[]
["4/ Precio de electricidad"]
[]
[null,"Costo promedio del kWh eléctrico",null,null,"$/kWh"]
[null,"(En caso de desconocer el valor, dividir el costo anual de la electricidad (suma del valor de los 12  últimos recibos de CFE) entre el consumo anual total en kWh (indicado en kWh mensuales en el recibo de CFE )"]
[]
["5/ Resultados"]
[]
[null,"Ahorro en demanda",null,{"$f":"IF(D18=\"\",\"\",D18-D32)","v":""},"kW"]
[]
[null,"Ahorro de energía eléctrica",null,{"$f":"IF(D45=\"\",\"\",D45*D22*D24)","v":""},"kWh/año"]
[]
[null,"Ahorro económico",null,{"$f":"IF(D47=\"\",\"\",D47*D40)","v":""},"$/año"]
[]
[null,"Tiempo de retorno de inversión",null,{"$f":"IF(D36=\"\",\"\",D36/D49)","v":""},"años"]
[]
[null,"Emisiones anuales de CO2 evitadas:",null,{"$f":"IF(D47=\"\",\"\",D47*D54)","v":""},"kgCO2e/año"]
[null,"Factor de emisión de electricidad considerado",null,0.499,"kgCO2e/kWh"]
[null,"Fuente: http://www.geimexico.org/factor.html "]